[Event "*** Titled Tuesday 3|2 Blitz"]
[Site "Chess.com"]
[Date "2016.07.05"]
[Round "4"]
[White "FairChess_on_YouTube"]
[Black "Zenzo"]
[Result "1-0"]
[WhiteElo "2733"]
[BlackElo "2373"]
[TimeControl "180+2"]
[EndTime "17:46:38 PDT"]
[Termination "FairChess_on_YouTube won by resignation"]

1. e4 {[%clk 0:03:01.9]} 1... e5 {[%clk 0:03:00.8]} 2. Nf3 {[%clk 0:03:02.3]}
2... Nc6 {[%clk 0:03:02.4]} 3. Bb5 {[%clk 0:03:03.3]} 3... a6 {[%clk 0:03:03.8]}
4. Bxc6 {[%clk 0:03:04]} 4... dxc6 {[%clk 0:03:04.7]} 5. O-O {[%clk 0:03:05.7]}
5... Bg4 {[%clk 0:03:05.9]} 6. h3 {[%clk 0:03:05.5]} 6... Bh5 {[%clk 0:03:07.2]}
7. d3 {[%clk 0:03:00.5]} 7... f6 {[%clk 0:03:07.9]} 8. Be3 {[%clk 0:03:01.9]}
8... c5 {[%clk 0:03:06.3]} 9. Nbd2 {[%clk 0:02:59]} 9... Bd6 {[%clk 0:03:04.9]}
10. c3 {[%clk 0:02:58.4]} 10... Ne7 {[%clk 0:02:58]} 11. Qb3 {[%clk 0:02:55.5]}
11... b6 {[%clk 0:02:50.3]} 12. Rac1 {[%clk 0:02:51.2]} 12... Bf7 {[%clk
0:02:49.2]} 13. Qc2 {[%clk 0:02:52]} 13... O-O {[%clk 0:02:47.4]} 14. Rfd1
{[%clk 0:02:52.6]} 14... Ng6 {[%clk 0:02:39.8]} 15. d4 {[%clk 0:02:52.8]} 15...
cxd4 {[%clk 0:02:33.9]} 16. cxd4 {[%clk 0:02:54.7]} 16... exd4 {[%clk 0:02:13]}
17. Nxd4 {[%clk 0:02:56.6]} 17... c5 {[%clk 0:01:38.3]} 18. Nf5 {[%clk
0:02:54.7]} 18... Be5 {[%clk 0:01:35.8]} 19. Nf3 {[%clk 0:02:33.5]} 19... Qb8
{[%clk 0:01:28]} 20. Nxe5 {[%clk 0:02:19.8]} 20... Qxe5 {[%clk 0:01:29]} 21. Rd6
{[%clk 0:02:16.6]} 21... Rab8 {[%clk 0:01:22.5]} 22. Rcd1 {[%clk 0:02:14.5]}
22... Rfe8 {[%clk 0:01:18.1]} 23. f3 {[%clk 0:02:10.8]} 23... Be6 {[%clk
0:01:09.2]} 24. Bc1 {[%clk 0:01:43.4]} 24... Bxf5 {[%clk 0:01:08.3]} 25. exf5
{[%clk 0:01:44.6]} 25... Nh4 {[%clk 0:01:01.5]} 26. Qc4+ {[%clk 0:01:43.9]} 1-0

[Event "*** Titled Tuesday 3|2 Blitz"]
[Site "Chess.com"]
[Date "2016.07.05"]
[Round "4"]
[White "Journey_to_GrandMaster_YT"]
[Black "anon97531"]
[Result "1-0"]
[WhiteElo "2432"]
[BlackElo "2294"]
[TimeControl "180+2"]
[EndTime "17:49:15 PDT"]
[Termination "Journey_to_GrandMaster_YT won by resignation"]

1. d4 {[%clk 0:03:00]} 1... e6 {[%clk 0:02:31.7]} 2. Nf3 {[%clk 0:02:59.7]} 2...
Nf6 {[%clk 0:02:32.6]} 3. e3 {[%clk 0:02:59.7]} 3... b6 {[%clk 0:02:34]} 4. Bd3
{[%clk 0:03:00.1]} 4... Bb7 {[%clk 0:02:35.6]} 5. Nbd2 {[%clk 0:03:00.7]} 5...
c5 {[%clk 0:02:37.1]} 6. O-O {[%clk 0:02:59.5]} 6... Be7 {[%clk 0:02:38.3]} 7.
c3 {[%clk 0:02:57.5]} 7... O-O {[%clk 0:02:39.7]} 8. e4 {[%clk 0:02:58.1]} 8...
d5 {[%clk 0:02:40.5]} 9. Qe2 {[%clk 0:02:52.9]} 9... dxe4 {[%clk 0:02:36.8]} 10.
Nxe4 {[%clk 0:02:52.4]} 10... Nbd7 {[%clk 0:02:37.5]} 11. Rd1 {[%clk 0:02:50]}
11... Nxe4 {[%clk 0:02:36.2]} 12. Bxe4 {[%clk 0:02:50.1]} 12... Bxe4 {[%clk
0:02:37.3]} 13. Qxe4 {[%clk 0:02:50.7]} 13... Nf6 {[%clk 0:02:38.6]} 14. Qe2
{[%clk 0:02:47.2]} 14... cxd4 {[%clk 0:02:35.2]} 15. Rxd4 {[%clk 0:02:45.8]}
15... Qc8 {[%clk 0:02:24.9]} 16. Bg5 {[%clk 0:02:45.2]} 16... Rd8 {[%clk
0:02:25.1]} 17. Rad1 {[%clk 0:02:45.1]} 17... Rxd4 {[%clk 0:02:26.2]} 18. Rxd4
{[%clk 0:02:45.3]} 18... Qe8 {[%clk 0:02:24.7]} 19. Qd2 {[%clk 0:02:31.4]} 19...
Rd8 {[%clk 0:02:23.1]} 20. h3 {[%clk 0:02:27.4]} 20... h6 {[%clk 0:02:20.2]} 21.
Bh4 {[%clk 0:02:17.2]} 21... Rxd4 {[%clk 0:02:18.7]} 22. Qxd4 {[%clk 0:02:17.4]}
22... Qd8 {[%clk 0:02:18.5]} 23. Bxf6 {[%clk 0:02:12.8]} 23... Bxf6 {[%clk
0:02:16.5]} 24. Qxd8+ {[%clk 0:02:07.8]} 24... Bxd8 {[%clk 0:02:17.3]} 25. Kf1
{[%clk 0:02:09.7]} 25... Bf6 {[%clk 0:02:14.1]} 26. Ke2 {[%clk 0:02:09.9]} 26...
Kf8 {[%clk 0:02:15.5]} 27. Kd3 {[%clk 0:02:10.5]} 27... Ke7 {[%clk 0:02:17]} 28.
Kc4 {[%clk 0:02:11.2]} 28... a6 {[%clk 0:02:12.9]} 29. Nd2 {[%clk 0:02:03.8]}
29... Kd7 {[%clk 0:02:09.8]} 30. Ne4 {[%clk 0:02:03.5]} 30... Be7 {[%clk
0:02:10.9]} 31. a4 {[%clk 0:02:01.7]} 31... Kc6 {[%clk 0:02:09.9]} 32. b4 {[%clk
0:01:58.9]} 32... b5+ {[%clk 0:02:11.1]} 33. axb5+ {[%clk 0:01:59.5]} 33...
axb5+ {[%clk 0:02:13]} 34. Kd3 {[%clk 0:02:00.7]} 34... f5 {[%clk 0:02:10.2]}
35. Nd2 {[%clk 0:02:01.3]} 35... Bd8 {[%clk 0:01:57]} 36. Nf3 {[%clk 0:01:57.6]}
36... Bf6 {[%clk 0:01:50.5]} 37. Nd4+ {[%clk 0:01:56.7]} 37... Bxd4 {[%clk
0:01:46.1]} 38. Kxd4 {[%clk 0:01:57.2]} 38... Kd6 {[%clk 0:01:47.6]} 39. f4
{[%clk 0:01:57.5]} 39... g5 {[%clk 0:01:36.8]} 40. g3 {[%clk 0:01:57.9]} 40...
gxf4 {[%clk 0:00:39]} 41. gxf4 {[%clk 0:01:57.8]} 41... e5+ {[%clk 0:00:36.1]}
42. fxe5+ {[%clk 0:01:57.8]} 42... Ke6 {[%clk 0:00:37.4]} 43. c4 {[%clk
0:01:46.1]} 43... bxc4 {[%clk 0:00:33.4]} 44. Kxc4 {[%clk 0:01:47.1]} 44... Kxe5
{[%clk 0:00:31.8]} 45. Kd3 {[%clk 0:01:24.5]} 45... Kd5 {[%clk 0:00:26.4]} 46.
h4 {[%clk 0:01:25.2]} 46... f4 {[%clk 0:00:22.7]} 47. h5 {[%clk 0:01:25.7]}
47... Kc6 {[%clk 0:00:21.4]} 48. Ke4 {[%clk 0:01:26.4]} 48... Kb5 {[%clk
0:00:23]} 49. Kxf4 {[%clk 0:01:27.5]} 49... Kxb4 {[%clk 0:00:24.9]} 50. Kf5
{[%clk 0:01:29]} 50... Kc5 {[%clk 0:00:26.8]} 51. Kg6 {[%clk 0:01:30.4]} 51...
Kd6 {[%clk 0:00:27.5]} 52. Kxh6 {[%clk 0:01:31.8]} 52... Ke7 {[%clk 0:00:29.1]}
53. Kg7 {[%clk 0:01:33]} 1-0

[Event "*** Titled Tuesday 3|2 Blitz"]
[Site "Chess.com"]
[Date "2016.07.05"]
[Round "4"]
[White "ruifeng"]
[Black "MFBerna"]
[Result "1-0"]
[WhiteElo "2321"]
[BlackElo "2258"]
[TimeControl "180+2"]
[EndTime "17:49:24 PDT"]
[Termination "ruifeng won on time"]

1. e4 {[%clk 0:03:01.9]} 1... c6 {[%clk 0:03:00.1]} 2. d4 {[%clk 0:03:00.6]}
2... d5 {[%clk 0:03:02]} 3. exd5 {[%clk 0:03:02]} 3... cxd5 {[%clk 0:03:03.9]}
4. c4 {[%clk 0:03:03.4]} 4... Nf6 {[%clk 0:03:05.4]} 5. Nc3 {[%clk 0:03:04.7]}
5... e6 {[%clk 0:03:06.9]} 6. Nf3 {[%clk 0:03:04.8]} 6... Bb4 {[%clk 0:03:07.2]}
7. cxd5 {[%clk 0:03:05.8]} 7... Qxd5 {[%clk 0:03:05.8]} 8. Bd3 {[%clk
0:03:03.6]} 8... O-O {[%clk 0:03:05.9]} 9. O-O {[%clk 0:03:04.6]} 9... Qh5
{[%clk 0:03:03]} 10. Ne2 {[%clk 0:03:01.8]} 10... Bd6 {[%clk 0:02:54.9]} 11. Nf4
{[%clk 0:02:52.9]} 11... Qa5 {[%clk 0:02:54.9]} 12. Bd2 {[%clk 0:02:49.8]} 12...
Qb6 {[%clk 0:02:53.6]} 13. Rb1 {[%clk 0:02:26.4]} 13... Nc6 {[%clk 0:02:54.3]}
14. Ne2 {[%clk 0:02:24.5]} 14... Nb4 {[%clk 0:02:47.9]} 15. Bc4 {[%clk
0:02:24.4]} 15... Bd7 {[%clk 0:02:43.3]} 16. a3 {[%clk 0:02:24.6]} 16... Rac8
{[%clk 0:02:42.3]} 17. Bb3 {[%clk 0:02:24.8]} 17... Nbd5 {[%clk 0:02:35]} 18.
Nc3 {[%clk 0:02:22.7]} 18... Bc6 {[%clk 0:02:19.8]} 19. Bg5 {[%clk 0:02:19.3]}
19... Qc7 {[%clk 0:02:11.2]} 20. Ne2 {[%clk 0:01:57.7]} 20... Ne4 {[%clk
0:02:02.7]} 21. Bh4 {[%clk 0:01:55.8]} 21... Qb6 {[%clk 0:01:51.1]} 22. Bc2
{[%clk 0:01:55.9]} 22... Ndf6 {[%clk 0:01:36.1]} 23. Nc3 {[%clk 0:01:52.6]}
23... Qa5 {[%clk 0:01:12.4]} 24. Qd3 {[%clk 0:01:35.5]} 24... Qh5 {[%clk
0:01:03.8]} 25. Bg3 {[%clk 0:01:05.7]} 25... Bxg3 {[%clk 0:01:00.2]} 26. fxg3
{[%clk 0:01:06.9]} 26... Nxc3 {[%clk 0:00:48.5]} 27. bxc3 {[%clk 0:01:04.8]}
27... Ng4 {[%clk 0:00:33.8]} 28. h3 {[%clk 0:00:53.7]} 28... Nf6 {[%clk
0:00:34.1]} 29. g4 {[%clk 0:00:42.5]} 29... Qg6 {[%clk 0:00:25.8]} 30. Qd2
{[%clk 0:00:39.6]} 30... Ne4 {[%clk 0:00:20.3]} 31. Qe3 {[%clk 0:00:37.9]} 31...
f5 {[%clk 0:00:10.7]} 32. Ne5 {[%clk 0:00:36.6]} 32... Qf6 {[%clk 0:00:06.7]}
33. gxf5 {[%clk 0:00:34.2]} 33... exf5 {[%clk 0:00:06.5]} 34. c4 {[%clk
0:00:26.8]} 34... Qd6 {[%clk 0:00:04.4]} 35. c5 {[%clk 0:00:23.3]} 35... Qd5
{[%clk 0:00:04.6]} 36. Bb3 {[%clk 0:00:23.9]} 1-0

[Event "*** Titled Tuesday 3|2 Blitz"]
[Site "Chess.com"]
[Date "2016.07.05"]
[Round "4"]
[White "Newlight1"]
[Black "JusticeBot"]
[Result "1/2-1/2"]
[WhiteElo "2282"]
[BlackElo "2554"]
[TimeControl "180+2"]
[EndTime "17:49:25 PDT"]
[Termination "Game drawn by agreement"]

1. e4 {[%clk 0:03:01.9]} 1... e5 {[%clk 0:03:00.9]} 2. Nf3 {[%clk 0:03:02.1]}
2... Nc6 {[%clk 0:03:02.5]} 3. d4 {[%clk 0:03:03.4]} 3... exd4 {[%clk
0:03:04.4]} 4. Bc4 {[%clk 0:03:04.2]} 4... Nf6 {[%clk 0:03:05.8]} 5. O-O {[%clk
0:03:05.3]} 5... Nxe4 {[%clk 0:03:06.6]} 6. Re1 {[%clk 0:03:06.5]} 6... d5
{[%clk 0:03:08.3]} 7. Bxd5 {[%clk 0:03:08]} 7... Qxd5 {[%clk 0:03:05.1]} 8. Nc3
{[%clk 0:03:07.6]} 8... Qh5 {[%clk 0:03:01.6]} 9. Nxe4 {[%clk 0:03:06.5]} 9...
Be6 {[%clk 0:03:01.9]} 10. Bg5 {[%clk 0:03:07.4]} 10... Bd6 {[%clk 0:02:59.7]}
11. Nxd6+ {[%clk 0:03:08]} 11... cxd6 {[%clk 0:03:01.6]} 12. Bf4 {[%clk
0:03:09]} 12... Qd5 {[%clk 0:03:02.3]} 13. c3 {[%clk 0:03:09.7]} 13... Rc8
{[%clk 0:03:00.8]} 14. Nxd4 {[%clk 0:02:28.8]} 14... Nxd4 {[%clk 0:03:01.2]} 15.
Qxd4 {[%clk 0:02:30.5]} 15... Qxd4 {[%clk 0:03:00.9]} 16. cxd4 {[%clk
0:02:30.6]} 16... Kd7 {[%clk 0:03:02.8]} 17. b3 {[%clk 0:02:22.4]} 17... Rc2
{[%clk 0:02:53.9]} 18. d5 {[%clk 0:01:38.8]} 18... Bxd5 {[%clk 0:02:03.4]} 19.
Rad1 {[%clk 0:01:37.4]} 19... Kc6 {[%clk 0:01:59.7]} 20. Rc1 {[%clk 0:01:36.5]}
20... Rc5 {[%clk 0:01:50]} 21. Rcd1 {[%clk 0:01:31.8]} 21... Rd8 {[%clk
0:01:43]} 22. Rd2 {[%clk 0:01:29.3]} 22... Be6 {[%clk 0:01:39.6]} 23. Be3 {[%clk
0:01:27.1]} 23... Ra5 {[%clk 0:01:29.3]} 24. Bd4 {[%clk 0:01:24.7]} 24... g6
{[%clk 0:01:24]} 25. Rc1+ {[%clk 0:01:21.1]} 25... Kd7 {[%clk 0:01:21.3]} 26.
Rdc2 {[%clk 0:01:20.6]} 26... Ke7 {[%clk 0:01:12.1]} 27. f3 {[%clk 0:01:18.2]}
27... Ra6 {[%clk 0:00:50.9]} 28. g4 {[%clk 0:01:16.1]} 28... Bd5 {[%clk
0:00:51]} 29. Kf2 {[%clk 0:01:14.9]} 29... Bc6 {[%clk 0:00:46.9]} 30. a4 {[%clk
0:01:13.4]} 30... Kd7 {[%clk 0:00:47.7]} 31. Kg3 {[%clk 0:01:11.9]} 31... Re8
{[%clk 0:00:48.8]} 32. Rd1 {[%clk 0:01:10.8]} 32... Ra5 {[%clk 0:00:49.6]} 33.
Rcd2 {[%clk 0:01:09.9]} 33... Re6 {[%clk 0:00:41.9]} 34. Bc3 {[%clk 0:01:09.1]}
34... Ra6 {[%clk 0:00:30.3]} 35. Rd3 {[%clk 0:01:08.3]} 35... b5 {[%clk
0:00:26.6]} 36. a5 {[%clk 0:01:07.4]} 36... Bb7 {[%clk 0:00:25.1]} 37. Bb4
{[%clk 0:01:04.8]} 37... Rc6 {[%clk 0:00:26.3]} 38. h3 {[%clk 0:01:04.6]} 38...
Ra6 {[%clk 0:00:25.1]} 39. Bc3 {[%clk 0:01:03.5]} 39... d5 {[%clk 0:00:21.5]}
40. b4 {[%clk 0:01:02.8]} 40... Kc8 {[%clk 0:00:21.3]} 41. Bd4 {[%clk
0:01:01.1]} 41... Kb8 {[%clk 0:00:21.7]} 42. Kf4 {[%clk 0:00:59]} 42... Rac6
{[%clk 0:00:22.5]} 43. Be5+ {[%clk 0:00:57.2]} 43... Ka8 {[%clk 0:00:18.3]} 44.
Rxd5 {[%clk 0:00:57.8]} 44... Rc4+ {[%clk 0:00:19.5]} 45. R5d4 {[%clk
0:00:57.1]} 45... Rc8 {[%clk 0:00:18.2]} 46. Rd8 {[%clk 0:00:56]} 46... Re8
{[%clk 0:00:15.3]} 47. Rxe8 {[%clk 0:00:54.4]} 47... Rxe8 {[%clk 0:00:16]} 48.
Rd7 {[%clk 0:00:55]} 1/2-1/2

[Event "*** Titled Tuesday 3|2 Blitz"]
[Site "Chess.com"]
[Date "2016.07.05"]
[Round "4"]
[White "Rock700chess"]
[Black "goingin33"]
[Result "0-1"]
[WhiteElo "2204"]
[BlackElo "2161"]
[TimeControl "180+2"]
[EndTime "17:49:37 PDT"]
[Termination "goingin33 won by checkmate"]

1. d4 {[%clk 0:03:01.9]} 1... Nf6 {[%clk 0:03:00.6]} 2. c4 {[%clk 0:03:02.8]}
2... g6 {[%clk 0:03:01.5]} 3. Nc3 {[%clk 0:03:02.2]} 3... d5 {[%clk 0:03:02.4]}
4. Nf3 {[%clk 0:02:59.2]} 4... Bg7 {[%clk 0:03:02.8]} 5. Bg5 {[%clk 0:03:00.4]}
5... Ne4 {[%clk 0:03:04]} 6. Bh4 {[%clk 0:03:01.6]} 6... Nxc3 {[%clk 0:03:05.1]}
7. bxc3 {[%clk 0:03:03.5]} 7... dxc4 {[%clk 0:03:06.8]} 8. Qa4+ {[%clk
0:03:04.2]} 8... Nd7 {[%clk 0:03:06.2]} 9. Qxc4 {[%clk 0:02:57]} 9... O-O {[%clk
0:03:06.8]} 10. e3 {[%clk 0:02:57.9]} 10... c5 {[%clk 0:03:07.2]} 11. Be2 {[%clk
0:02:58.4]} 11... cxd4 {[%clk 0:03:08.1]} 12. cxd4 {[%clk 0:02:56.7]} 12... Qa5+
{[%clk 0:03:09.1]} 13. Kf1 {[%clk 0:02:48.5]} 13... e5 {[%clk 0:03:07.2]} 14.
Be7 {[%clk 0:02:46.4]} 14... Re8 {[%clk 0:03:00.6]} 15. Bb4 {[%clk 0:02:47.3]}
15... Qd8 {[%clk 0:02:46.5]} 16. Rd1 {[%clk 0:02:47.7]} 16... Nb6 {[%clk
0:02:42.1]} 17. Qc2 {[%clk 0:02:34.6]} 17... e4 {[%clk 0:02:09.1]} 18. Ne5
{[%clk 0:02:27.2]} 18... Bf5 {[%clk 0:02:10.6]} 19. Bb5 {[%clk 0:01:57]} 19...
Rc8 {[%clk 0:01:41.6]} 20. Qe2 {[%clk 0:01:51.3]} 20... Re6 {[%clk 0:01:25.6]}
21. g4 {[%clk 0:01:42.4]} 21... Bxg4 {[%clk 0:01:22.1]} 22. Qxg4 {[%clk
0:01:23.9]} 22... h5 {[%clk 0:01:20.1]} 23. Qe2 {[%clk 0:00:47]} 23... a6 {[%clk
0:01:20]} 24. Bc4 {[%clk 0:00:47.5]} 24... Nxc4 {[%clk 0:01:09.9]} 25. Nxc4
{[%clk 0:00:48.5]} 25... Rec6 {[%clk 0:01:08.4]} 26. Nd2 {[%clk 0:00:32.1]}
26... f5 {[%clk 0:00:46.4]} 27. h4 {[%clk 0:00:24]} 27... a5 {[%clk 0:00:44.1]}
28. Bc5 {[%clk 0:00:21.1]} 28... b6 {[%clk 0:00:44.2]} 29. Ba3 {[%clk
0:00:20.9]} 29... Rc3 {[%clk 0:00:45.7]} 30. Bc1 {[%clk 0:00:20.8]} 30... Rxc1
{[%clk 0:00:46.5]} 31. Kg2 {[%clk 0:00:22.5]} 31... R1c2 {[%clk 0:00:44]} 32.
Qb5 {[%clk 0:00:21.8]} 32... Kh7 {[%clk 0:00:34.6]} 33. Rh3 {[%clk 0:00:22.8]}
33... R8c6 {[%clk 0:00:33.5]} 34. d5 {[%clk 0:00:23.2]} 34... R6c5 {[%clk
0:00:33.9]} 35. Qb3 {[%clk 0:00:20.8]} 35... Qxd5 {[%clk 0:00:34.9]} 36. Nxe4
{[%clk 0:00:15.1]} 36... Qxe4+ {[%clk 0:00:32]} 37. Kg1 {[%clk 0:00:12]} 37...
Re2 {[%clk 0:00:26.5]} 38. Qf7 {[%clk 0:00:11.3]} 38... Rcc2 {[%clk 0:00:18.2]}
39. Rg3 {[%clk 0:00:12.5]} 39... Qc6 {[%clk 0:00:19.3]} 40. Rd7 {[%clk
0:00:10.8]} 40... Rc1+ {[%clk 0:00:20.1]} 41. Kh2 {[%clk 0:00:12.5]} 41... Rh1#
{[%clk 0:00:20.8]} 0-1

[Event "*** Titled Tuesday 3|2 Blitz"]
[Site "Chess.com"]
[Date "2016.07.05"]
[Round "4"]
[White "MaestroASK"]
[Black "E-Shaposhnikov"]
[Result "0-1"]
[WhiteElo "2479"]
[BlackElo "2664"]
[TimeControl "180+2"]
[EndTime "17:49:42 PDT"]
[Termination "E-Shaposhnikov won by resignation"]

1. g3 {[%clk 0:03:01.9]} 1... c5 {[%clk 0:03:00.2]} 2. d3 {[%clk 0:03:02.4]}
2... Nc6 {[%clk 0:03:01.3]} 3. Bg2 {[%clk 0:03:03.3]} 3... d5 {[%clk 0:03:00.7]}
4. c3 {[%clk 0:03:04.2]} 4... f5 {[%clk 0:02:55.1]} 5. e4 {[%clk 0:02:53.5]}
5... dxe4 {[%clk 0:02:52.1]} 6. dxe4 {[%clk 0:02:54.2]} 6... Qxd1+ {[%clk
0:02:54]} 7. Kxd1 {[%clk 0:02:55.1]} 7... Nf6 {[%clk 0:02:51.4]} 8. Nd2 {[%clk
0:02:54.6]} 8... e5 {[%clk 0:02:43.1]} 9. Ke2 {[%clk 0:02:48.9]} 9... fxe4
{[%clk 0:02:36.1]} 10. Nxe4 {[%clk 0:02:49]} 10... Bg4+ {[%clk 0:02:36.7]} 11.
Bf3 {[%clk 0:02:43.4]} 11... Bf5 {[%clk 0:02:30.7]} 12. Nxf6+ {[%clk 0:02:34.6]}
12... gxf6 {[%clk 0:02:32.6]} 13. Be3 {[%clk 0:02:33.5]} 13... O-O-O {[%clk
0:02:29.7]} 14. Rd1 {[%clk 0:02:31.9]} 14... Be7 {[%clk 0:02:27]} 15. Ke1 {[%clk
0:02:08.1]} 15... e4 {[%clk 0:02:15.6]} 16. Be2 {[%clk 0:02:06.9]} 16... Ne5
{[%clk 0:02:15.7]} 17. Bf4 {[%clk 0:02:03.7]} 17... Nd3+ {[%clk 0:01:59.3]} 18.
Bxd3 {[%clk 0:02:04.5]} 18... exd3 {[%clk 0:02:01.2]} 19. Kd2 {[%clk 0:02:03.8]}
19... Be4 {[%clk 0:01:58.5]} 20. f3 {[%clk 0:02:04.1]} 20... Bd5 {[%clk
0:01:55.7]} 21. b3 {[%clk 0:02:04.3]} 21... b5 {[%clk 0:01:49.9]} 22. h4 {[%clk
0:01:38.8]} 22... c4 {[%clk 0:01:47.9]} 23. Rb1 {[%clk 0:01:34.3]} 23... Bc5
{[%clk 0:01:44.9]} 24. bxc4 {[%clk 0:01:23.1]} 24... Bxc4 {[%clk 0:01:45.7]} 25.
Nh3 {[%clk 0:00:30.7]} 25... Rhe8 {[%clk 0:01:45.4]} 26. Rhe1 {[%clk 0:00:28.4]}
26... Re2+ {[%clk 0:01:44.5]} 27. Rxe2 {[%clk 0:00:26.4]} 27... dxe2+ {[%clk
0:01:43.2]} 28. Ke1 {[%clk 0:00:26.3]} 28... Rd1+ {[%clk 0:01:23.9]} 29. Rxd1
{[%clk 0:00:26]} 29... exd1=Q+ {[%clk 0:01:25.8]} 30. Kxd1 {[%clk 0:00:27.1]}
30... Bf1 {[%clk 0:01:27.6]} 31. Ng5 {[%clk 0:00:21.4]} 31... fxg5 {[%clk
0:01:28]} 32. Bxg5 {[%clk 0:00:20.1]} 32... Bc4 {[%clk 0:01:28.3]} 33. f4 {[%clk
0:00:18.5]} 33... Bxa2 {[%clk 0:01:25.5]} 34. g4 {[%clk 0:00:19.6]} 34... Bb3+
{[%clk 0:01:23.5]} 35. Kd2 {[%clk 0:00:19.8]} 35... a5 {[%clk 0:01:24.3]} 36.
Kc1 {[%clk 0:00:18]} 36... a4 {[%clk 0:01:24.5]} 37. Kb2 {[%clk 0:00:19.2]}
37... Bc4 {[%clk 0:01:21.5]} 38. Bf6 {[%clk 0:00:18.6]} 38... a3+ {[%clk
0:01:20.7]} 39. Kc2 {[%clk 0:00:17.8]} 39... Kd7 {[%clk 0:01:10.6]} 40. g5
{[%clk 0:00:14.5]} 40... Be2 {[%clk 0:01:05.2]} 41. Kb3 {[%clk 0:00:13]} 41...
Ke6 {[%clk 0:01:06]} 42. Be5 {[%clk 0:00:11]} 42... Bd1+ {[%clk 0:01:05.8]} 43.
Ka2 {[%clk 0:00:11.8]} 43... Kf5 {[%clk 0:01:06.6]} 44. Bc7 {[%clk 0:00:09.3]}
44... Be2 {[%clk 0:01:04.9]} 45. Be5 {[%clk 0:00:08]} 45... Bc4+ {[%clk
0:01:05.6]} 46. Kb1 {[%clk 0:00:07.8]} 46... Bf7 {[%clk 0:01:03.9]} 47. Bc7
{[%clk 0:00:06.8]} 47... Be3 {[%clk 0:01:03.5]} 0-1

[Event "*** Titled Tuesday 3|2 Blitz"]
[Site "Chess.com"]
[Date "2016.07.05"]
[Round "4"]
[White "proxy6"]
[Black "Astaneh"]
[Result "0-1"]
[WhiteElo "1921"]
[BlackElo "2449"]
[TimeControl "180+2"]
[EndTime "17:49:55 PDT"]
[Termination "Astaneh won by resignation"]

1. d4 {[%clk 0:03:01.7]} 1... Nf6 {[%clk 0:03:01.3]} 2. c4 {[%clk 0:03:01.8]}
2... g6 {[%clk 0:03:02.7]} 3. f3 {[%clk 0:03:02.4]} 3... d5 {[%clk 0:03:03.2]}
4. cxd5 {[%clk 0:03:00.7]} 4... Nxd5 {[%clk 0:03:05.1]} 5. e4 {[%clk 0:02:58.7]}
5... Nb6 {[%clk 0:03:06.7]} 6. Nc3 {[%clk 0:02:58.9]} 6... Bg7 {[%clk
0:03:08.3]} 7. Be3 {[%clk 0:03:00]} 7... O-O {[%clk 0:03:09.6]} 8. Qd2 {[%clk
0:02:59.2]} 8... Nc6 {[%clk 0:03:05.3]} 9. Nge2 {[%clk 0:02:52.1]} 9... Nc4
{[%clk 0:03:03.3]} 10. Qc1 {[%clk 0:02:44.5]} 10... Nxe3 {[%clk 0:03:03.1]} 11.
Qxe3 {[%clk 0:02:44.8]} 11... Nxd4 {[%clk 0:03:04.7]} 12. Nxd4 {[%clk 0:02:43]}
12... Qxd4 {[%clk 0:03:04.2]} 13. Qxd4 {[%clk 0:02:41.2]} 13... Bxd4 {[%clk
0:03:06.1]} 14. O-O-O {[%clk 0:02:40.7]} 14... Be3+ {[%clk 0:03:03.1]} 15. Kc2
{[%clk 0:02:41.1]} 15... c6 {[%clk 0:03:04.5]} 16. Bc4 {[%clk 0:02:41.7]} 16...
Bb6 {[%clk 0:02:56.5]} 17. Rd2 {[%clk 0:02:36.4]} 17... Rd8 {[%clk 0:02:52.9]}
18. Rhd1 {[%clk 0:02:34.7]} 18... Rxd2+ {[%clk 0:02:53.2]} 19. Rxd2 {[%clk
0:02:36.6]} 19... Kf8 {[%clk 0:02:54]} 20. g3 {[%clk 0:02:16]} 20... e5 {[%clk
0:02:40.3]} 21. Ne2 {[%clk 0:02:07.8]} 21... Ke7 {[%clk 0:02:38.2]} 22. f4
{[%clk 0:01:46.8]} 22... exf4 {[%clk 0:02:37.9]} 23. Nxf4 {[%clk 0:01:46.6]}
23... Bg4 {[%clk 0:02:31.2]} 24. b4 {[%clk 0:01:43.8]} 24... Rd8 {[%clk
0:02:29.3]} 25. b5 {[%clk 0:01:42.2]} 25... cxb5 {[%clk 0:02:10.2]} 26. Nd5+
{[%clk 0:01:39]} 26... Kf8 {[%clk 0:02:05.5]} 27. Bxb5 {[%clk 0:01:19.3]} 27...
Ba5 {[%clk 0:02:04.2]} 28. Rf2 {[%clk 0:01:19.7]} 28... Be6 {[%clk 0:02:04.9]}
29. Bc4 {[%clk 0:01:17.6]} 29... Kg7 {[%clk 0:02:01.1]} 30. Bb3 {[%clk
0:01:12.8]} 30... Rc8+ {[%clk 0:01:56.1]} 31. Kb2 {[%clk 0:01:08.1]} 31... Rc5
{[%clk 0:01:48.3]} 32. Rc2 {[%clk 0:00:58.7]} 32... Rxc2+ {[%clk 0:01:45.8]} 33.
Kxc2 {[%clk 0:01:00.6]} 33... Bd8 {[%clk 0:01:41.7]} 34. Kd3 {[%clk 0:00:59.1]}
34... h5 {[%clk 0:01:37.7]} 35. Bd1 {[%clk 0:00:43.4]} 35... f5 {[%clk
0:01:14.2]} 36. Bf3 {[%clk 0:00:41.9]} 36... fxe4+ {[%clk 0:01:14]} 37. Bxe4
{[%clk 0:00:40]} 37... b6 {[%clk 0:01:15]} 38. a3 {[%clk 0:00:38.8]} 38... Bf7
{[%clk 0:01:12.2]} 39. Kd4 {[%clk 0:00:29.2]} 39... Be8 {[%clk 0:01:05.9]} 40.
Kc4 {[%clk 0:00:20]} 40... g5 {[%clk 0:00:45.3]} 41. Nc3 {[%clk 0:00:14.8]}
41... Kf6 {[%clk 0:00:39.3]} 42. Nb5 {[%clk 0:00:14.1]} 42... Ke5 {[%clk
0:00:37.5]} 43. Bg2 {[%clk 0:00:10.9]} 43... a6 {[%clk 0:00:33.8]} 44. Nd4
{[%clk 0:00:10.5]} 44... b5+ {[%clk 0:00:32.4]} 45. Kd3 {[%clk 0:00:09.4]} 45...
Bg6+ {[%clk 0:00:32.3]} 46. Ke3 {[%clk 0:00:04.3]} 46... Bb6 {[%clk 0:00:33]}
0-1